bitfinex-derivatives/quotes_BTCF0:USTF0_20250614
["timestamp","ask_amount","ask_price","bid_price","bid_amount"]
[1749872784777,2.09322759,105400.0,105390.0,0.16008503]
[1749872785081,2.09322759,105400.0,105390.0,0.17058798]
[1749872785281,2.09322759,105400.0,105390.0,0.17058776]
[1749872785470,2.09322759,105400.0,105390.0,0.14236183]
[1749872785673,2.09322759,105400.0,105390.0,0.14525086]
[1749872785975,2.09322759,105400.0,105390.0,0.1705838]
[1749872786177,2.09322759,105400.0,105390.0,0.14668868]
[1749872786373,2.09322759,105400.0,105390.0,0.17058379]
[1749872786572,2.09322759,105400.0,105390.0,0.1705838]
[1749872786771,2.09322759,105400.0,105390.0,0.15719174]
[1749872786981,2.09322759,105400.0,105390.0,0.17058379]
[1749872787585,2.09322759,105400.0,105390.0,0.1705838]
[1749872788284,2.09322759,105400.0,105390.0,0.17058765]
[1749872788779,2.09322759,105400.0,105390.0,0.15719559]
[1749872788980,2.09322759,105400.0,105390.0,0.12422779]
[1749872789281,2.24129676,105400.0,105390.0,0.17059914]
[1749872789584,2.09318759,105400.0,105390.0,0.14236741]
[1749872789788,2.09318759,105400.0,105390.0,0.16005474]
[1749872790078,2.09318759,105400.0,105390.0,0.1318605]
[1749872790288,2.09318759,105400.0,105390.0,0.17056207]
[1749872790489,2.09318759,105400.0,105390.0,0.15573209]
[1749872790688,2.09318759,105400.0,105390.0,0.1318601]
[1749872790884,2.09318759,105400.0,105390.0,0.157197]
[1749872791187,2.09318759,105400.0,105390.0,0.17056513]
[1749872791389,2.09318759,105400.0,105390.0,0.17056815]
[1749872791681,2.09318759,105400.0,105390.0,0.14522852]
[1749872791885,2.09318759,105400.0,105390.0,0.16005817]
[1749872792086,2.09318759,105400.0,105390.0,0.17056823]
[1749872792283,2.09318759,105400.0,105390.0,0.17056825]
[1749872792478,2.09318759,105400.0,105390.0,0.16005819]
[1749872792684,2.09318759,105400.0,105390.0,0.15573862]
[1749872792884,2.09318759,105400.0,105390.0,0.170568]
[1749872793280,2.09318759,105400.0,105390.0,0.17053005]
[1749872793484,2.09318759,105400.0,105390.0,0.14519067]
[1749872793787,2.09318759,105400.0,105390.0,0.1705285]
[1749872793983,2.09318759,105400.0,105390.0,0.15719907]
[1749872794191,2.09318759,105400.0,105390.0,0.17057188]
[1749872794881,2.09318759,105400.0,105390.0,0.15719603]
[1749872795082,2.09318759,105400.0,105390.0,0.17057189]
[1749872795576,2.09318759,105400.0,105390.0,0.17057186]
[1749872796190,2.09318759,105400.0,105390.0,0.16006562]
[1749872796489,2.09318759,105400.0,105390.0,0.17057179]
[1749872796691,2.09318759,105400.0,105390.0,0.14236627]
[1749872796987,1.15050759,105400.0,105390.0,0.15574173]
[1749872797189,2.09314759,105400.0,105390.0,0.15574149]
[1749872797390,2.09314759,105400.0,105390.0,0.17057125]
[1749872797590,2.09314759,105400.0,105390.0,0.17057124]
[1749872797783,2.09314759,105400.0,105390.0,0.16006529]
[1749872797987,2.09314759,105400.0,105390.0,0.17057122]
[1749872798181,2.09314759,105400.0,105390.0,0.15719579]
[1749872798382,2.09314759,105400.0,105390.0,0.16006532]
[1749872798582,2.09314759,105400.0,105390.0,0.1318601]
[1749872798787,2.09314759,105400.0,105390.0,0.17057135]
[1749872799083,2.09314759,105400.0,105390.0,0.1705797]
[1749872799288,2.09314759,105400.0,105390.0,0.14520557]
[1749872799484,2.09314759,105400.0,105390.0,0.15719255]
[1749872799691,2.09314759,105400.0,105390.0,0.14236317]
[1749872799895,2.09314759,105400.0,105390.0,0.17052854]
[1749872800191,2.09314759,105400.0,105390.0,0.15569915]
[1749872800386,2.09314759,105400.0,105390.0,0.14236332]
[1749872800692,2.09314759,105400.0,105390.0,0.17058035]
[1749872800887,2.09314759,105400.0,105390.0,0.17057989]
[1749872801088,2.09314759,105400.0,105390.0,0.16002526]
[1749872801290,2.09314759,105400.0,105390.0,0.15719265]
[1749872801587,2.09314759,105400.0,105390.0,0.15719283]
[1749872801891,2.09314759,105400.0,105390.0,0.15574681]
[1749872802086,2.09314759,105400.0,105390.0,0.15719308]
[1749872802286,2.09314759,105400.0,105390.0,0.17057594]
[1749872802490,2.09314759,105400.0,105390.0,0.15719244]
[1749872802888,2.09314759,105400.0,105390.0,0.17057595]
[1749872803091,2.09314759,105400.0,105390.0,0.14524361]
[1749872803289,2.09314759,105400.0,105390.0,0.17059724]
[1749872803491,2.09314759,105400.0,105390.0,0.17059727]
[1749872804087,2.09314759,105400.0,105390.0,0.15576733]
[1749872804294,2.09314759,105400.0,105390.0,0.17059677]
[1749872804494,2.09314759,105400.0,105390.0,0.15719266]
[1749872804794,2.12275492,105400.0,105390.0,0.12422537]
[1749872805097,2.12275492,105400.0,105390.0,0.12422415]
[1749872805294,2.12275492,105400.0,105390.0,0.09599011]
[1749872805592,2.12275492,105400.0,105390.0,0.09889126]
[1749872805795,2.12275492,105400.0,105390.0,0.1242226]
[1749872806089,2.12275492,105400.0,105390.0,0.1137212]
[1749872806296,2.12275492,105400.0,105390.0,0.11372126]
[1749872806489,2.12275492,105400.0,105390.0,0.08548871]
[1749872806689,2.12275492,105400.0,105390.0,0.11372862]
[1749872806996,2.12275492,105400.0,105390.0,0.11372866]
[1749872807394,2.12275492,105400.0,105390.0,0.08548871]
[1749872807594,2.12275492,105400.0,105390.0,0.10940313]
[1749872807797,2.12275492,105400.0,105390.0,0.11082333]
[1749872807990,2.12275492,105400.0,105390.0,0.12423318]
[1749872808190,2.12275492,105400.0,105390.0,0.12423322]
[1749872808695,2.12275492,105400.0,105390.0,0.12423317]
[1749872808890,2.12275492,105400.0,105390.0,0.11372855]
[1749872809095,2.12275492,105400.0,105390.0,0.10031871]
[1749872809284,2.12275492,105400.0,105390.0,0.12423301]
[1749872809487,2.12275492,105400.0,105390.0,0.11082333]
[1749872809686,2.12275492,105400.0,105390.0,0.09889842]
[1749872809894,2.12275492,105400.0,105390.0,0.12423098]
[1749872810498,2.12275492,105400.0,105390.0,0.12423096]
[1749872810793,2.12275492,105400.0,105390.0,0.11082236]
[1749872810999,2.12275492,105400.0,105390.0,0.12423096]
[1749872811394,2.12275492,105400.0,105390.0,0.12423432]
[1749872811590,2.12275492,105400.0,105390.0,0.10940412]
[1749872811791,2.12275492,105400.0,105390.0,0.12423412]
[1749872812286,2.12275492,105400.0,105390.0,0.09599572]
[1749872812488,2.12275492,105400.0,105390.0,0.10031871]
[1749872812695,2.12275492,105400.0,105390.0,0.12424283]
[1749872812895,2.12275492,105400.0,105390.0,0.11373582]
[1749872813096,2.12275492,105400.0,105390.0,0.09599572]
[1749872813395,2.12275492,105400.0,105390.0,0.08548871]
[1749872813597,2.12275492,105400.0,105390.0,0.109413]
[1749872813792,2.12275492,105400.0,105390.0,0.10031871]
[1749872813998,2.12275492,105400.0,105390.0,0.08548871]
[1749872814199,2.12275492,105400.0,105390.0,0.11373618]
[1749872814701,2.2413357,105400.0,105390.0,0.15990446]
[1749872814901,2.09322653,105400.0,105390.0,0.15990446]
[1749872815101,2.09322653,105400.0,105390.0,0.15990445]
[1749872816500,2.09322653,105400.0,105390.0,0.15989677]
[1749872817202,2.09322653,105400.0,105390.0,0.14506677]
[1749872817397,2.09322653,105400.0,105390.0,0.15989679]
[1749872817699,2.09322653,105400.0,105390.0,0.15989887]
[1749872818002,2.09322653,105400.0,105390.0,0.1450695]
[1749872818207,2.09322653,105400.0,105390.0,0.15989949]
[1749872818504,2.09322653,105400.0,105390.0,0.15989956]
[1749872818705,2.2413357,105400.0,105390.0,0.1003188]
[1749872819203,2.2413357,105400.0,105390.0,0.11373952]
[1749872819399,2.09322653,105400.0,105390.0,0.1598992]
[1749872820105,2.09322653,105400.0,105390.0,0.14506911]
[1749872820402,2.09322653,105400.0,105390.0,0.14506805]
[1749872820602,2.09322653,105400.0,105390.0,0.15989813]
[1749872821505,2.09322653,105400.0,105390.0,0.14506803]
[1749872821699,2.09322653,105400.0,105390.0,0.14647848]
[1749872821898,2.09322653,105400.0,105390.0,0.15989806]
[1749872823209,2.09322653,105400.0,105390.0,0.1599001]
[1749872823594,2.09322653,105400.0,105390.0,0.14507002]
[1749872823799,2.09322653,105400.0,105390.0,0.15990225]
[1749872824000,2.09322653,105400.0,105390.0,0.15698162]
[1749872824200,2.09322653,105400.0,105390.0,0.15557531]
[1749872824405,2.09322653,105400.0,105390.0,0.1704054]
[1749872824704,2.09322653,105400.0,105390.0,0.15698162]
[1749872824904,2.09322653,105400.0,105390.0,0.1704054]
[1749872826908,2.09322653,105400.0,105390.0,0.14647848]
[1749872827107,2.09322653,105400.0,105390.0,0.1704038]
[1749872827612,2.09322653,105400.0,105390.0,0.15698002]
[1749872827801,2.09322653,105400.0,105390.0,0.14214993]
[1749872827998,2.09322653,105400.0,105390.0,0.15698002]
[1749872828202,2.09322653,105400.0,105390.0,0.17039966]
[1749872828608,2.09322653,105400.0,105390.0,0.15698002]
[1749872828909,2.09322653,105400.0,105390.0,0.15989808]
[1749872829113,2.09322653,105400.0,105390.0,0.17039962]
[1749872830205,2.09322653,105400.0,105390.0,0.17040038]
[1749872830400,2.09322653,105400.0,105390.0,0.15698051]
[1749872830607,2.09322653,105400.0,105390.0,0.17040149]
[1749872830802,2.09322653,105400.0,105390.0,0.15556853]
[1749872831007,2.09322653,105400.0,105390.0,0.14647848]
[1749872831206,2.09322653,105400.0,105390.0,0.15555993]
[1749872831406,2.09322653,105400.0,105390.0,0.17038993]
[1749872831912,2.09322653,105400.0,105390.0,0.14647854]
[1749872832107,2.09322653,105400.0,105390.0,0.17041073]
[1749872832406,2.09322653,105400.0,105390.0,0.15990933]
[1749872832614,2.09322653,105400.0,105390.0,0.17041073]
[1749872832813,2.09322653,105400.0,105390.0,0.14214979]
[1749872833001,2.09322653,105400.0,105390.0,0.17040919]
[1749872833403,2.09322653,105400.0,105390.0,0.17040917]
[1749872833607,2.09322653,105400.0,105390.0,0.15990777]
[1749872833911,2.09322653,105400.0,105390.0,0.15990764]
[1749872834218,2.09322653,105400.0,105390.0,0.15697997]
[1749872834509,2.09322653,105400.0,105390.0,0.17041055]
[1749872834708,2.12275492,105400.0,105390.0,0.11374946]
[1749872834907,2.26501372,105400.0,105390.0,0.0148304]
[1749872835103,2.26501372,105400.0,105370.0,0.37204983]
[1749872835104,0.1897033,105380.0,105370.0,0.27312056]
[1749872835309,1.6773833,105380.0,105370.0,0.32970427]
[1749872835503,1.7098833,105380.0,105370.0,0.32970427]
[1749872835716,1.7420833,105380.0,105370.0,0.32970427]
[1749872836106,2.0920833,105380.0,105370.0,0.15334427]
[1749872836312,2.2704433,105380.0,105370.0,0.10148371]
[1749872836719,2.38701901,105380.0,105370.0,0.08748554]
[1749872836915,2.42211901,105380.0,105370.0,0.05540576]
[1749872837115,2.42211901,105380.0,105370.0,0.05540589]
[1749872837417,2.39211901,105380.0,105370.0,0.05540589]
[1749872837614,2.39211901,105380.0,105370.0,0.0449]
[1749872837813,2.39211901,105380.0,105370.0,0.05540589]
[1749872838014,2.39311901,105380.0,105370.0,0.0449]
[1749872838210,2.39311901,105380.0,105370.0,0.05540589]
[1749872838414,2.39311901,105380.0,105370.0,0.05540592]
[1749872839013,2.39311901,105380.0,105370.0,0.0449]
[1749872839220,2.39311901,105380.0,105370.0,0.05540592]
[1749872840218,2.39311901,105380.0,105370.0,0.05540562]
[1749872840424,2.39311901,105380.0,105370.0,0.0449]
[1749872840615,2.39311901,105380.0,105370.0,0.0554052]
[1749872840921,2.39311901,105380.0,105370.0,0.05540513]
[1749872841219,2.39725736,105380.0,105370.0,0.0449]
[1749872846421,2.39725736,105380.0,105370.0,0.014]
[1749872847121,2.39725736,105380.0,105370.0,0.04246324]
[1749872847618,2.39725736,105380.0,105370.0,0.014]
[1749872847820,2.39725736,105380.0,105370.0,0.04246578]
[1749872848220,2.39725736,105380.0,105370.0,0.02763331]
[1749872848422,2.39725736,105380.0,105370.0,0.04246578]
[1749872849627,2.39725736,105380.0,105370.0,0.04245664]
[1749872850723,2.39725736,105380.0,105370.0,0.02883247]
[1749872850926,2.39725736,105380.0,105370.0,0.0424655]
[1749872851126,2.39725736,105380.0,105370.0,0.02763303]
[1749872851426,2.39725736,105380.0,105370.0,0.02883247]
[1749872851615,2.39725736,105380.0,105370.0,0.04246536]
[1749872851819,2.39725736,105380.0,105370.0,0.02883247]
[1749872852223,2.39725736,105380.0,105370.0,0.04246536]
[1749872852423,2.39725736,105380.0,105370.0,0.02883247]
[1749872852623,2.39725736,105380.0,105370.0,0.04246536]
[1749872853124,2.39725736,105380.0,105370.0,0.04246537]
[1749872853329,2.39725736,105380.0,105370.0,0.02883247]
[1749872853528,2.39725736,105380.0,105370.0,0.04247813]
[1749872853822,2.39725736,105380.0,105370.0,0.02764566]
[1749872854027,2.39725736,105380.0,105370.0,0.02883247]
[1749872854324,2.39725736,105380.0,105370.0,0.02764566]
[1749872854830,2.27868165,105380.0,105370.0,0.04247813]
[1749872855023,2.27868165,105380.0,105370.0,0.02883247]
[1749872855224,2.27868165,105380.0,105370.0,0.04247813]
[1749872855825,2.27868165,105380.0,105370.0,0.04247845]
[1749872856430,2.27868165,105380.0,105370.0,0.02883247]
[1749872856731,2.27868165,105380.0,105370.0,0.04247842]
[1749872857530,2.39725736,105380.0,105370.0,0.04253586]
[1749872857732,2.39725736,105380.0,105370.0,0.04253631]
[1749872857733,2.27868165,105380.0,105370.0,0.04253631]
[1749872857930,2.27868165,105380.0,105370.0,0.04253942]
[1749872858131,2.27868165,105380.0,105370.0,0.0277065]
[1749872858326,2.27868165,105380.0,105370.0,0.04253968]
[1749872858534,2.39725736,105380.0,105370.0,0.04253968]
[1749872858734,2.27868165,105380.0,105370.0,0.04256873]
[1749872858937,2.27868165,105380.0,105370.0,0.02883318]
[1749872859137,2.27868165,105380.0,105370.0,0.02773555]
[1749872859329,2.27868165,105380.0,105370.0,0.04256873]
[1749872859528,2.27868165,105380.0,105370.0,0.02883318]
[1749872859834,2.27868165,105380.0,105370.0,0.05314036]
[1749872860028,2.27868165,105380.0,105370.0,0.02883319]
[1749872860229,2.27868165,105380.0,105370.0,0.05314104]
[1749872860435,2.39725736,105380.0,105370.0,0.0426156]
[1749872860635,2.39725736,105380.0,105370.0,0.03936984]
[1749872860837,2.39725736,105380.0,105370.0,0.05315072]
[1749872861031,2.39725736,105380.0,105370.0,0.05315066]
[1749872861234,2.39725736,105380.0,105370.0,0.03936977]
[1749872861538,2.39725736,105380.0,105370.0,0.05313993]
[1749872861735,2.39725736,105380.0,105370.0,0.05313994]
[1749872861933,2.39725736,105380.0,105370.0,0.02883324]
[1749872862138,2.39725736,105380.0,105370.0,0.02777482]
[1749872862329,2.39725736,105380.0,105370.0,0.03936513]
[1749872862834,2.39725736,105380.0,105370.0,0.02780095]
[1749872863040,2.39725736,105380.0,105370.0,0.05316607]
[1749872863341,2.39725736,105380.0,105370.0,0.06696638]
[1749872863538,2.39311901,105380.0,105370.0,0.06696638]
[1749872863839,2.39311901,105380.0,105370.0,0.05643449]
[1749872864441,2.39725736,105380.0,105370.0,0.04263418]
[1749872864740,2.39725736,105380.0,105370.0,0.05643416]
[1749872864935,2.39725736,105380.0,105370.0,0.04263418]
[1749872865239,2.39725736,105380.0,105370.0,0.05643562]
[1749872865442,2.39725736,105380.0,105370.0,0.04263419]
[1749872865746,2.39725736,105380.0,105370.0,0.07384433]
[1749872865938,2.39725736,105380.0,105370.0,0.08764698]
[1749872866137,2.39725736,105380.0,105370.0,0.10248018]
[1749872866642,2.39625736,105380.0,105370.0,0.10248024]
[1749872866843,2.39725736,105380.0,105370.0,0.10248024]
[1749872867046,2.39725736,105380.0,105370.0,0.10248022]
[1749872867245,2.39725736,105380.0,105370.0,0.10248023]
[1749872867538,2.39725736,105380.0,105370.0,0.08848023]
[1749872867739,2.39725736,105380.0,105370.0,0.07467757]
[1749872868140,2.39725736,105380.0,105370.0,0.01380095]
[1749872868446,2.39725736,105380.0,105370.0,0.02863419]
[1749872868945,2.39725736,105380.0,105370.0,0.04243204]
[1749872869446,2.39725736,105380.0,105370.0,0.0275988]
[1749872869746,2.39725736,105380.0,105370.0,0.02863419]
[1749872870044,2.39725736,105380.0,105370.0,0.04243221]
[1749872870238,2.39725736,105380.0,105370.0,0.02759897]
[1749872870439,2.39725736,105380.0,105370.0,0.08847974]
[1749872870640,2.39725736,105380.0,105370.0,0.0736465]
[1749872870839,2.39725736,105380.0,105370.0,0.04243204]
[1749872871034,2.39725736,105380.0,105370.0,0.04243203]
[1749872871238,2.39725736,105380.0,105370.0,0.04243202]
[1749872871645,2.39311901,105380.0,105370.0,0.04243202]
[1749872872146,2.39311901,105380.0,105370.0,0.02863419]
[1749872872445,2.39311901,105380.0,105370.0,0.01380095]
[1749872872646,2.39725736,105380.0,105370.0,0.04242741]
[1749872872842,2.39725736,105380.0,105370.0,0.02759417]
[1749872873044,2.39725736,105380.0,105370.0,0.04242741]
[1749872873346,2.39725736,105380.0,105370.0,0.0424274]
[1749872873844,2.39725736,105380.0,105370.0,0.03916575]
[1749872874044,2.39725736,105380.0,105370.0,0.05295934]
[1749872874340,2.39725736,105380.0,105370.0,0.03812609]
[1749872874538,2.39725736,105380.0,105370.0,0.02433251]
[1749872874741,2.39725736,105380.0,105370.0,0.04242779]
[1749872874939,2.39725736,105380.0,105370.0,0.03812611]
[1749872875138,2.39725736,105380.0,105370.0,0.05296434]
[1749872875338,2.39725736,105380.0,105370.0,0.02433253]
[1749872875544,2.39725736,105380.0,105370.0,0.02760199]
[1749872875743,2.39725736,105380.0,105370.0,0.03916583]
[1749872875940,2.27868165,105380.0,105370.0,0.02863426]
[1749872876139,2.42690137,105380.0,105370.0,0.04245662]
[1749872876444,2.42690137,105380.0,105370.0,0.02863444]
[1749872876639,2.42690137,105380.0,105370.0,0.04245909]
[1749872876841,2.42690137,105380.0,105370.0,0.02863444]
[1749872877040,2.42690137,105380.0,105370.0,0.04215718]
[1749872877240,2.42690137,105380.0,105370.0,0.01380095]
[1749872877546,2.42690137,105380.0,105370.0,0.04215719]
[1749872878149,2.42690137,105380.0,105370.0,0.04215717]
[1749872878446,2.42690137,105380.0,105370.0,0.02863444]
[1749872878846,2.42690137,105380.0,105370.0,0.02732369]
[1749872879049,2.42690137,105380.0,105370.0,0.04215718]
[1749872879345,2.42690137,105380.0,105370.0,0.04215717]
[1749872879545,2.42690137,105380.0,105370.0,0.01380095]
[1749872879746,2.42276302,105380.0,105370.0,0.02732368]
[1749872880041,2.42276302,105380.0,105370.0,0.01380095]
[1749872880241,2.42276302,105380.0,105370.0,0.04215718]
[1749872880440,2.35163334,105380.0,105370.0,0.01053522]
[1749872880641,0.1897574,105350.0,105340.0,0.13413986]
[1749872880846,2.2037574,105350.0,105340.0,0.12207448]
[1749872881052,2.38471562,105350.0,105340.0,0.07854485]
[1749872881354,2.2661574,105350.0,105340.0,0.04604485]
[1749872881648,0.1897754,105340.0,105330.0,0.04929787]
[1749872881844,0.6129754,105340.0,105330.0,0.09514388]
[1749872882446,0.8829754,105340.0,105330.0,0.07848787]
[1749872882648,0.9929754,105340.0,105330.0,0.07848787]
[1749872882849,0.9325104,105340.0,105330.0,0.07848787]
[1749872883142,0.9725104,105340.0,105330.0,0.07848787]
[1749872883347,0.6225104,105340.0,105330.0,0.07848787]
[1749872883947,0.9345104,105340.0,105330.0,0.07848787]
[1749872884250,0.6255104,105340.0,105330.0,0.07848787]
[1749872884849,1.06215015,105340.0,105330.0,0.07848787]
[1749872885053,1.05215015,105340.0,105330.0,0.07848787]
[1749872885245,1.06215015,105340.0,105330.0,0.07848787]
[1749872885642,0.99215015,105340.0,105330.0,0.07848787]
[1749872885848,0.70215015,105340.0,105330.0,0.07848787]
[1749872886054,1.02215015,105340.0,105330.0,0.07848787]
[1749872887155,0.70215015,105340.0,105330.0,0.07848787]
[1749872887747,1.08215015,105340.0,105330.0,0.07848787]
[1749872887952,0.70215015,105340.0,105330.0,0.07848787]
[1749872889054,1.03215015,105340.0,105330.0,0.07848787]
[1749872889259,1.02215015,105340.0,105330.0,0.07848787]
[1749872889552,1.02215015,105340.0,105330.0,0.03264186]
[1749872889750,1.05245015,105340.0,105330.0,0.00014186]
[1749872892459,1.05245015,105340.0,105330.0,0.01363146]
[1749872892856,1.05145015,105340.0,105330.0,0.02847032]
[1749872893056,1.05445015,105340.0,105330.0,0.02847033]
[1749872893455,1.06345015,105340.0,105330.0,0.02847033]
[1749872893965,1.06345015,105340.0,105330.0,0.02852843]
[1749872894262,1.06345015,105340.0,105330.0,0.01368955]
[1749872894556,1.06345015,105340.0,105330.0,0.01368957]
[1749872894757,1.06345015,105340.0,105330.0,0.01368956]
[1749872894957,1.06345015,105340.0,105330.0,0.02852843]
[1749872895457,0.0474513,105330.0,105300.0,0.18132]
[1749872895754,0.0474513,105330.0,105300.0,0.21402]
[1749872895755,0.5506294,105310.0,105300.0,0.21402]
[1749872895961,0.5506294,105310.0,105300.0,0.24672]
[1749872896164,0.5827294,105310.0,105300.0,0.24672]
[1749872896961,0.5827294,105310.0,105300.0,0.103]
[1749872897159,0.5827294,105310.0,105300.0,0.27932]
[1749872897359,0.6153294,105310.0,105300.0,0.27932]
[1749872897559,0.6183294,105310.0,105300.0,0.24672]
[1749872900169,0.9383294,105310.0,105300.0,0.0704]
[1749872900464,0.6183294,105310.0,105300.0,0.21402]
[1749872901463,0.9883294,105310.0,105300.0,0.21402]
[1749872901663,0.9683294,105310.0,105300.0,0.0377]
[1749872902261,0.9683294,105310.0,105300.0,0.005]
[1749872903661,0.9990294,105310.0,105300.0,0.005]
[1749872904066,0.9990294,105310.0,105300.0,0.00913835]
[1749872904565,0.9990294,105310.0,105300.0,0.04123835]
[1749872905865,0.9990294,105310.0,105300.0,0.00913835]
[1749872906063,0.9990294,105310.0,105300.0,0.02869642]
[1749872906265,0.1898654,105290.0,105280.0,0.00733888]
[1749872906570,1.0878254,105290.0,105280.0,0.00733888]
[1749872906867,1.1512254,105290.0,105280.0,0.19722228]
[1749872907057,0.9748654,105290.0,105280.0,0.19722228]
[1749872907563,0.9768654,105290.0,105280.0,0.19722228]
[1749872907767,0.9798654,105290.0,105280.0,0.2120658]
[1749872907970,1.3098654,105290.0,105280.0,0.0221824]
[1749872908265,0.9798654,105290.0,105280.0,0.0221825]
[1749872908469,1.4992254,105290.0,105280.0,0.00733888]
[1749872908665,1.1892254,105290.0,105280.0,0.02218335]
[1749872908864,1.1892254,105290.0,105280.0,0.02045371]
[1749872909268,2.2980254,105290.0,105280.0,0.03529838]
[1749872909573,2.2980254,105290.0,105280.0,0.03529842]
[1749872909574,2.3180254,105290.0,105280.0,0.03529842]
[1749872909869,1.9660254,105290.0,105280.0,0.03529842]
[1749872910462,2.2861054,105290.0,105280.0,0.03529842]
[1749872910666,1.9661054,105290.0,105280.0,0.03529864]
[1749872910867,1.9661054,105290.0,105280.0,0.03529775]
[1749872911067,2.3261054,105290.0,105280.0,0.03529775]
[1749872911269,1.9661054,105290.0,105280.0,0.03529767]
[1749872911474,1.9661054,105290.0,105280.0,0.03528957]
[1749872911769,1.9661054,105290.0,105280.0,0.02045771]
[1749872912065,2.3461054,105290.0,105280.0,0.03531476]
[1749872912263,1.9661054,105290.0,105280.0,0.03531487]
[1749872912466,1.9661054,105290.0,105280.0,0.03531504]
[1749872912664,2.3361054,105290.0,105280.0,0.03531504]
[1749872912862,2.3061054,105290.0,105280.0,0.03531504]
[1749872913067,1.9661054,105290.0,105280.0,0.035342]
[1749872913267,1.9666654,105290.0,105280.0,0.035342]
[1749872913468,1.9666654,105290.0,105280.0,0.03534182]
[1749872913665,1.9666654,105290.0,105280.0,0.02049685]
[1749872913866,1.9666654,105290.0,105280.0,0.02046552]
[1749872914067,1.9666654,105290.0,105280.0,0.03531042]
[1749872914269,1.9666654,105290.0,105280.0,0.03944877]
[1749872914461,1.9666654,105290.0,105280.0,0.02632213]
[1749872914662,1.9666654,105290.0,105280.0,0.01147723]
[1749872914970,1.9666654,105290.0,105280.0,0.03944504]
[1749872915267,1.9666654,105290.0,105280.0,0.03944505]
[1749872915471,1.9666654,105290.0,105280.0,0.03944504]
[1749872915669,1.9666654,105290.0,105280.0,0.01147723]
[1749872915870,1.9666654,105290.0,105280.0,0.03944504]
[1749872916268,2.3066654,105290.0,105280.0,0.03944502]
[1749872916466,0.9778654,105290.0,105280.0,0.22932812]
[1749872916668,0.9778654,105290.0,105280.0,0.27978345]
[1749872916865,0.9778654,105290.0,105280.0,0.28150456]
[1749872917061,0.9778654,105290.0,105280.0,0.28150442]
[1749872917463,0.9778654,105290.0,105280.0,0.26666053]
[1749872917671,0.9778654,105290.0,105280.0,0.28150442]
[1749872917869,0.9778654,105290.0,105280.0,0.26666053]
[1749872918062,0.9778654,105290.0,105280.0,0.32695528]
[1749872918467,0.003,105290.0,105280.0,1.07361139]
[1749872918673,0.1928653,105290.0,105280.0,1.08845364]
[1749872918977,0.1928653,105290.0,105280.0,1.14754404]
[1749872919275,0.1928653,105290.0,105280.0,1.14754369]
[1749872919666,0.1928653,105290.0,105280.0,0.78674372]
[1749872920068,0.5536653,105290.0,105280.0,0.48765319]
[1749872920273,0.6161653,105290.0,105280.0,0.67045319]
[1749872920666,0.6161653,105290.0,105280.0,0.63975319]
[1749872920974,0.6161653,105290.0,105280.0,0.60725472]
[1749872921471,0.6161653,105290.0,105280.0,0.25457146]
[1749872921672,0.6161653,105290.0,105280.0,0.25457148]
[1749872921873,0.6161653,105290.0,105280.0,0.07177148]
[1749872922078,0.6161653,105290.0,105280.0,0.071772]
[1749872922375,0.6161653,105290.0,105280.0,0.07177201]
[1749872922872,0.6161653,105290.0,105280.0,0.05692809]
[1749872923071,0.6161653,105290.0,105280.0,0.07177201]
[1749872923267,0.6161653,105290.0,105280.0,0.05692809]
[1749872923474,0.6161653,105290.0,105280.0,0.07177201]
[1749872923669,0.6161653,105290.0,105280.0,0.05692809]
[1749872923670,0.7989653,105290.0,105280.0,0.05692809]
[1749872924275,0.7989653,105290.0,105280.0,0.07177239]
[1749872924575,0.7989653,105290.0,105280.0,0.05692809]
[1749872924773,0.7989653,105290.0,105280.0,0.07177239]
[1749872925072,0.7989653,105290.0,105280.0,0.07004498]
[1749872925271,1.5779653,105290.0,105280.0,0.07177252]
[1749872925473,1.5779653,105290.0,105280.0,0.05692809]
[1749872925673,1.9379653,105290.0,105280.0,0.07177257]
[1749872925874,1.9479653,105290.0,105280.0,0.07007268]
[1749872926074,1.5779653,105290.0,105280.0,0.05692809]
[1749872926275,1.5779653,105290.0,105280.0,0.08491888]
[1749872926480,1.5779653,105290.0,105280.0,0.07007421]
[1749872926674,1.5779653,105290.0,105280.0,0.08491888]
[1749872926873,1.5779653,105290.0,105280.0,0.08491886]
[1749872927070,1.5779653,105290.0,105280.0,0.08491884]
[1749872927270,1.5799653,105290.0,105280.0,0.071773]
[1749872927465,1.5889653,105290.0,105280.0,0.07009823]
[1749872927768,1.5889653,105290.0,105280.0,0.08494309]
[1749872928277,1.9589653,105290.0,105280.0,0.07177297]
[1749872928468,1.9798653,105290.0,105280.0,0.0849443]
[1749872928781,1.9798653,105290.0,105280.0,0.08496962]
[1749872929072,1.9398653,105290.0,105280.0,0.08496974]
[1749872929280,1.6198653,105290.0,105280.0,0.0701398]
[1749872929575,1.6198653,105290.0,105280.0,0.08499586]
[1749872929968,1.9698653,105290.0,105280.0,0.08500346]
[1749872930166,1.6198653,105290.0,105280.0,0.07015763]
[1749872930373,1.6198653,105290.0,105280.0,0.08500027]
[1749872931279,1.6198653,105290.0,105280.0,0.08503269]
[1749872931581,1.6198653,105290.0,105280.0,0.08503265]
[1749872931967,1.9698653,105290.0,105280.0,0.08503265]
[1749872932171,1.6198653,105290.0,105280.0,0.08503265]
[1749872932378,1.6198653,105290.0,105280.0,0.08503292]
[1749872932575,1.6198653,105290.0,105280.0,0.07177292]
[1749872932773,1.6198653,105290.0,105280.0,0.07177273]
[1749872932973,1.6198653,105290.0,105280.0,0.08500979]
[1749872933176,1.9498653,105290.0,105280.0,0.08500979]
[1749872933378,1.6198653,105290.0,105280.0,0.08500979]
[1749872933580,1.6198653,105290.0,105280.0,0.08500981]
[1749872933878,1.6198653,105290.0,105280.0,0.08500985]
[1749872934282,1.9998653,105290.0,105280.0,0.08500782]
[1749872934480,1.9998653,105290.0,105280.0,0.08500787]
[1749872934680,1.9998653,105290.0,105280.0,0.08500179]
[1749872934881,1.6198653,105290.0,105280.0,0.07177277]
[1749872935073,1.9298653,105290.0,105280.0,0.07017602]
[1749872935275,1.9298653,105290.0,105280.0,0.08502075]
[1749872935571,1.9298653,105290.0,105280.0,0.0850207]
[1749872935971,1.6198653,105290.0,105280.0,0.0850207]
[1749872936276,1.9400653,105290.0,105280.0,0.0850207]
[1749872936475,1.9400653,105290.0,105280.0,0.08500273]
[1749872936676,1.9400653,105290.0,105280.0,0.07177311]
[1749872936878,1.9900653,105290.0,105280.0,0.08500304]
[1749872937079,1.6200653,105290.0,105280.0,0.08500304]
[1749872937276,1.9600653,105290.0,105280.0,0.07177311]
[1749872937478,1.9600653,105290.0,105280.0,0.07015961]
[1749872937873,1.9600653,105290.0,105280.0,0.08500122]
[1749872938273,1.9600653,105290.0,105280.0,0.07177311]
[1749872938478,1.9600653,105290.0,105280.0,0.05692809]
[1749872938479,1.6200653,105290.0,105280.0,0.05692809]
[1749872938781,1.6200653,105290.0,105280.0,0.07177311]
[1749872939077,1.6200653,105290.0,105280.0,0.05692809]
[1749872939279,1.6200653,105290.0,105280.0,0.07015623]
[1749872939781,1.6200653,105290.0,105280.0,0.08500096]
[1749872939982,1.6200653,105290.0,105280.0,0.08496583]
[1749872940182,1.6200653,105290.0,105280.0,0.07177282]
[1749872940381,1.9400653,105290.0,105280.0,0.08496581]